[Event "*** Titled Tuesday Blitz"]
[Site "Chess.com"]
[Date "2021.03.16"]
[Round "10"]
[White "VinzentSpitzl"]
[Black "Omk124"]
[Result "0-1"]
[WhiteElo "2382"]
[BlackElo "2559"]
[TimeControl "180+1"]
[EndTime "11:55:17 PDT"]
[Termination "Omk124 won by checkmate"]

1. d4 {[%clk 0:03:00.9]} 1... Nf6 {[%clk 0:02:59.8]} 2. Nf3 {[%clk 0:03:00.4]}
2... g6 {[%clk 0:02:59.9]} 3. g3 {[%clk 0:02:59.9]} 3... Bg7 {[%clk 0:03:00]} 4.
Bg2 {[%clk 0:03:00.5]} 4... d5 {[%clk 0:03:00.1]} 5. O-O {[%clk 0:03:00.8]} 5...
O-O {[%clk 0:02:58.3]} 6. c4 {[%clk 0:02:57.6]} 6... dxc4 {[%clk 0:02:55]} 7.
Qc2 {[%clk 0:02:54.4]} 7... a6 {[%clk 0:02:52.7]} 8. Qxc4 {[%clk 0:02:50.8]}
8... b5 {[%clk 0:02:51]} 9. Qc2 {[%clk 0:02:51]} 9... Bb7 {[%clk 0:02:51.9]} 10.
Nc3 {[%clk 0:02:50.1]} 10... Nbd7 {[%clk 0:02:50.8]} 11. a3 {[%clk 0:02:44.6]}
11... Rc8 {[%clk 0:02:48]} 12. e4 {[%clk 0:02:36]} 12... c5 {[%clk 0:02:45.7]}
13. e5 {[%clk 0:02:36.1]} 13... cxd4 {[%clk 0:02:29.4]} 14. exf6 {[%clk
0:02:35.8]} 14... Bxf6 {[%clk 0:02:25.4]} 15. Nxd4 {[%clk 0:02:10.7]} 15... Bxg2
{[%clk 0:02:23.7]} 16. Kxg2 {[%clk 0:02:10.2]} 16... Bxd4 {[%clk 0:02:22.4]} 17.
Rd1 {[%clk 0:02:10.1]} 17... Qb6 {[%clk 0:02:16.6]} 18. Be3 {[%clk 0:01:56.9]}
18... Bxe3 {[%clk 0:02:14.2]} 19. fxe3 {[%clk 0:01:50.8]} 19... Nf6 {[%clk
0:02:11.8]} 20. Qe2 {[%clk 0:01:42.3]} 20... Rfd8 {[%clk 0:02:09.5]} 21. h3
{[%clk 0:01:33.4]} 21... Qe6 {[%clk 0:02:01.9]} 22. Qf3 {[%clk 0:01:20.5]} 22...
Kg7 {[%clk 0:01:36.2]} 23. g4 {[%clk 0:01:10.2]} 23... h6 {[%clk 0:01:34]} 24.
Kg3 {[%clk 0:00:56.7]} 24... Rd6 {[%clk 0:01:14.4]} 25. Rxd6 {[%clk 0:00:44.3]}
25... Qxd6+ {[%clk 0:01:12.9]} 26. Qf4 {[%clk 0:00:43.3]} 26... e5 {[%clk
0:01:10.1]} 27. Qf3 {[%clk 0:00:21.9]} 27... Qd2 {[%clk 0:01:08.7]} 28. Qf2
{[%clk 0:00:17.8]} 28... Qxc3 {[%clk 0:01:03]} 29. bxc3 {[%clk 0:00:13.3]} 29...
Ne4+ {[%clk 0:01:03.2]} 30. Kf3 {[%clk 0:00:13.5]} 30... Nxf2 {[%clk 0:01:04.1]}
31. Kxf2 {[%clk 0:00:14.4]} 31... Rxc3 {[%clk 0:01:05]} 32. a4 {[%clk
0:00:14.9]} 32... b4 {[%clk 0:01:05]} 33. a5 {[%clk 0:00:15.2]} 33... Ra3 {[%clk
0:01:05.3]} 34. Rb1 {[%clk 0:00:15.2]} 34... Rxa5 {[%clk 0:01:03.7]} 35. Rxb4
{[%clk 0:00:15.7]} 35... Ra2+ {[%clk 0:01:04.1]} 36. Kf3 {[%clk 0:00:15.7]}
36... Rh2 {[%clk 0:01:03.4]} 37. Kg3 {[%clk 0:00:15.7]} 37... Ra2 {[%clk
0:01:02.3]} 38. h4 {[%clk 0:00:15]} 38... a5 {[%clk 0:01:01.6]} 39. Rb6 {[%clk
0:00:13.3]} 39... a4 {[%clk 0:01:00.7]} 40. g5 {[%clk 0:00:13.7]} 40... hxg5
{[%clk 0:01:00.7]} 41. hxg5 {[%clk 0:00:14.6]} 41... a3 {[%clk 0:01:01.6]} 42.
Ra6 {[%clk 0:00:14.6]} 42... Ra1 {[%clk 0:01:00.8]} 43. Kg2 {[%clk 0:00:12.6]}
43... a2 {[%clk 0:01:01.1]} 44. Ra5 {[%clk 0:00:09.5]} 44... Kf8 {[%clk
0:01:00.4]} 45. Ra7 {[%clk 0:00:09.2]} 45... Ke8 {[%clk 0:01:00.4]} 46. e4
{[%clk 0:00:07.1]} 46... Kd8 {[%clk 0:01:00.7]} 47. Ra6 {[%clk 0:00:06.3]} 47...
Kc7 {[%clk 0:00:59.4]} 48. Ra5 {[%clk 0:00:05.9]} 48... Kb6 {[%clk 0:00:59.8]}
49. Ra3 {[%clk 0:00:05.5]} 49... Kb5 {[%clk 0:00:59.5]} 50. Ra8 {[%clk
0:00:05.5]} 50... Kc4 {[%clk 0:00:59.8]} 51. Ra7 {[%clk 0:00:04.5]} 51... Kd4
{[%clk 0:01:00.1]} 52. Ra4+ {[%clk 0:00:04.6]} 52... Ke3 {[%clk 0:01:00.4]} 53.
Kh2 {[%clk 0:00:04.6]} 53... Kf4 {[%clk 0:01:00.2]} 54. Kg2 {[%clk 0:00:04.2]}
54... Kxg5 {[%clk 0:01:00.5]} 55. Ra5 {[%clk 0:00:04.8]} 55... Kf4 {[%clk
0:00:59.6]} 56. Ra4 {[%clk 0:00:05.3]} 56... f6 {[%clk 0:00:59]} 57. Kh2 {[%clk
0:00:03.8]} 57... f5 {[%clk 0:00:58]} 58. exf5+ {[%clk 0:00:02.4]} 58... Kxf5
{[%clk 0:00:58.9]} 59. Kg2 {[%clk 0:00:02.9]} 59... e4 {[%clk 0:00:59.4]} 60.
Ra5+ {[%clk 0:00:02.8]} 60... Kf4 {[%clk 0:00:59.7]} 61. Ra4 {[%clk 0:00:03.7]}
61... g5 {[%clk 0:00:59.7]} 62. Kh2 {[%clk 0:00:03.7]} 62... g4 {[%clk
0:01:00.2]} 63. Kg2 {[%clk 0:00:04]} 63... Ke5 {[%clk 0:01:00.4]} 64. Ra5+
{[%clk 0:00:03.8]} 64... Kd6 {[%clk 0:01:00.9]} 65. Ra4 {[%clk 0:00:04]} 65...
e3 {[%clk 0:01:00.8]} 66. Ra6+ {[%clk 0:00:01.7]} 66... Kc7 {[%clk 0:01:00.7]}
67. Ra5 {[%clk 0:00:02.6]} 67... e2 {[%clk 0:01:00.2]} 68. Ra7+ {[%clk
0:00:03.1]} 68... Kb8 {[%clk 0:01:00.2]} 69. Ra3 {[%clk 0:00:02.6]} 69... e1=Q
{[%clk 0:00:59.8]} 70. Rb3+ {[%clk 0:00:03]} 70... Kc7 {[%clk 0:00:59.3]} 71.
Rg3 {[%clk 0:00:02.1]} 71... Qg1# {[%clk 0:00:58.7]} 0-1

[Event "*** Titled Tuesday Blitz"]
[Site "Chess.com"]
[Date "2021.03.16"]
[Round "10"]
[White "ViktoriyaTarasova"]
[Black "UCantHandleDenker"]
[Result "1-0"]
[WhiteElo "2389"]
[BlackElo "2505"]
[TimeControl "180+1"]
[EndTime "11:55:30 PDT"]
[Termination "ViktoriyaTarasova won by resignation"]

1. d4 {[%clk 0:03:00.9]} 1... Nf6 {[%clk 0:02:59.3]} 2. c4 {[%clk 0:03:00.8]}
2... c5 {[%clk 0:02:58.6]} 3. d5 {[%clk 0:03:00.6]} 3... d6 {[%clk 0:02:59.1]}
4. Nc3 {[%clk 0:02:59.7]} 4... g6 {[%clk 0:02:59.8]} 5. e4 {[%clk 0:02:59.7]}
5... Bg7 {[%clk 0:03:00]} 6. Nf3 {[%clk 0:02:59.9]} 6... O-O {[%clk 0:02:59.7]}
7. Bd3 {[%clk 0:03:00.4]} 7... e6 {[%clk 0:02:59.2]} 8. O-O {[%clk 0:02:58.4]}
8... exd5 {[%clk 0:02:56.9]} 9. exd5 {[%clk 0:02:58.2]} 9... Bg4 {[%clk
0:02:53.6]} 10. h3 {[%clk 0:02:58.3]} 10... Bxf3 {[%clk 0:02:53.7]} 11. Qxf3
{[%clk 0:02:58.8]} 11... Nbd7 {[%clk 0:02:51.9]} 12. Qd1 {[%clk 0:02:59.4]}
12... a6 {[%clk 0:02:47.7]} 13. a4 {[%clk 0:02:59]} 13... Ne5 {[%clk 0:02:16.1]}
14. Be2 {[%clk 0:02:58.6]} 14... Ne8 {[%clk 0:02:09.7]} 15. Be3 {[%clk
0:02:57.6]} 15... f5 {[%clk 0:02:06.1]} 16. Qd2 {[%clk 0:02:51]} 16... Nf6
{[%clk 0:01:56.6]} 17. Bh6 {[%clk 0:02:32.3]} 17... Rc8 {[%clk 0:01:49.6]} 18.
Bxg7 {[%clk 0:02:30.4]} 18... Kxg7 {[%clk 0:01:50.2]} 19. f4 {[%clk 0:02:30.7]}
19... Nf7 {[%clk 0:01:49.3]} 20. Bd3 {[%clk 0:02:26.6]} 20... Re8 {[%clk
0:01:42.6]} 21. Rfe1 {[%clk 0:02:25.3]} 21... Rc7 {[%clk 0:01:43.1]} 22. Rxe8
{[%clk 0:02:20.8]} 22... Qxe8 {[%clk 0:01:44]} 23. Re1 {[%clk 0:02:18.5]} 23...
Re7 {[%clk 0:01:44.5]} 24. Rxe7 {[%clk 0:02:11.2]} 24... Qxe7 {[%clk 0:01:45.4]}
25. Qe2 {[%clk 0:02:09.9]} 25... Qxe2 {[%clk 0:01:37.3]} 26. Bxe2 {[%clk
0:02:07.5]} 26... h6 {[%clk 0:01:17.1]} 27. Kf2 {[%clk 0:02:05.9]} 27... g5
{[%clk 0:01:15.9]} 28. Ke3 {[%clk 0:02:01.3]} 28... Nh8 {[%clk 0:01:14.4]} 29.
Bd3 {[%clk 0:01:57.2]} 29... Ng6 {[%clk 0:00:57.3]} 30. Bxf5 {[%clk 0:01:39.4]}
30... Nxf4 {[%clk 0:00:51.7]} 31. g3 {[%clk 0:01:30.3]} 31... Ng6 {[%clk
0:00:51.3]} 32. Bc8 {[%clk 0:01:26.8]} 32... Ne5 {[%clk 0:00:44.6]} 33. b3
{[%clk 0:01:21.7]} 33... b6 {[%clk 0:00:39.8]} 34. Bxa6 {[%clk 0:01:20.6]} 34...
Nh5 {[%clk 0:00:40.1]} 35. Ne4 {[%clk 0:01:15]} 35... Kf8 {[%clk 0:00:33.2]} 36.
Nxd6 {[%clk 0:01:02.9]} 36... Nxg3 {[%clk 0:00:32]} 37. Nc8 {[%clk 0:00:54.4]}
37... h5 {[%clk 0:00:21.5]} 38. Bb5 {[%clk 0:00:41.8]} 38... h4 {[%clk
0:00:18.7]} 39. d6 {[%clk 0:00:34.4]} 39... g4 {[%clk 0:00:07.7]} 40. d7 {[%clk
0:00:31.8]} 40... Nf5+ {[%clk 0:00:07.6]} 41. Kf2 {[%clk 0:00:29]} 41... Nxd7
{[%clk 0:00:03.6]} 42. Bxd7 {[%clk 0:00:29]} 42... g3+ {[%clk 0:00:03.4]} 43.
Kg1 {[%clk 0:00:27.2]} 43... Nd4 {[%clk 0:00:04.3]} 44. Nxb6 {[%clk 0:00:24.6]}
44... Nxb3 {[%clk 0:00:04.4]} 45. Bc6 {[%clk 0:00:21.5]} 45... Ke7 {[%clk
0:00:04.5]} 46. Nd5+ {[%clk 0:00:16.5]} 46... Kd6 {[%clk 0:00:04.5]} 47. Bb5
{[%clk 0:00:17.1]} 47... Nd4 {[%clk 0:00:03.9]} 48. Ne3 {[%clk 0:00:16.1]} 48...
Nf3+ {[%clk 0:00:03.1]} 49. Kg2 {[%clk 0:00:15.6]} 49... Ne1+ {[%clk 0:00:03.3]}
50. Kg1 {[%clk 0:00:15.9]} 50... Nf3+ {[%clk 0:00:03.6]} 51. Kf1 {[%clk
0:00:16.1]} 51... Ng5 {[%clk 0:00:03.1]} 52. Ng2 {[%clk 0:00:15.2]} 52... Nxh3
{[%clk 0:00:02.4]} 53. Nxh4 {[%clk 0:00:15.8]} 53... Nf4 {[%clk 0:00:03.3]} 54.
Ng2 {[%clk 0:00:15.8]} 54... Nd3 {[%clk 0:00:02.3]} 55. Ke2 {[%clk 0:00:15.2]}
55... Nb4 {[%clk 0:00:01.8]} 56. Kf3 {[%clk 0:00:15]} 56... Kc7 {[%clk
0:00:01.8]} 57. Kxg3 {[%clk 0:00:15.5]} 57... Kb6 {[%clk 0:00:02.3]} 58. Kf4
{[%clk 0:00:15.7]} 58... Ka5 {[%clk 0:00:03.2]} 59. Ne3 {[%clk 0:00:15.6]} 59...
Nc2 {[%clk 0:00:04]} 60. Nxc2 {[%clk 0:00:14.8]} 1-0

[Event "*** Titled Tuesday Blitz"]
[Site "Chess.com"]
[Date "2021.03.16"]
[Round "10"]
[White "enriquetejedor"]
[Black "VladimirBugayev"]
[Result "1-0"]
[WhiteElo "2537"]
[BlackElo "2295"]
[TimeControl "180+1"]
[EndTime "11:55:31 PDT"]
[Termination "enriquetejedor won on time"]

1. e4 {[%clk 0:02:56.7]} 1... c6 {[%clk 0:02:57.9]} 2. Nc3 {[%clk 0:02:56]} 2...
d5 {[%clk 0:02:57.7]} 3. Nf3 {[%clk 0:02:56.9]} 3... dxe4 {[%clk 0:02:57.7]} 4.
Nxe4 {[%clk 0:02:55.7]} 4... Nf6 {[%clk 0:02:58.3]} 5. d3 {[%clk 0:02:47.1]}
5... Nxe4 {[%clk 0:02:43.4]} 6. dxe4 {[%clk 0:02:48]} 6... Qxd1+ {[%clk
0:02:42.1]} 7. Kxd1 {[%clk 0:02:44]} 7... Bg4 {[%clk 0:02:41.4]} 8. Be2 {[%clk
0:02:31.7]} 8... Nd7 {[%clk 0:02:40.5]} 9. Ng5 {[%clk 0:02:20.9]} 9... Bxe2+
{[%clk 0:02:38.4]} 10. Kxe2 {[%clk 0:02:19.6]} 10... h6 {[%clk 0:02:18.1]} 11.
Nf3 {[%clk 0:02:17.9]} 11... e5 {[%clk 0:02:15.6]} 12. Be3 {[%clk 0:02:14.1]}
12... Bc5 {[%clk 0:02:12.2]} 13. Bxc5 {[%clk 0:02:00.5]} 13... Nxc5 {[%clk
0:02:10.5]} 14. Nxe5 {[%clk 0:02:01.4]} 14... Nxe4 {[%clk 0:02:05.6]} 15. Rhe1
{[%clk 0:02:01]} 15... O-O {[%clk 0:01:54.3]} 16. Rad1 {[%clk 0:01:58]} 16...
Rfe8 {[%clk 0:01:51.6]} 17. Kf3 {[%clk 0:01:48.3]} 17... Rxe5 {[%clk 0:01:27.2]}
18. Rxe4 {[%clk 0:01:42.3]} 18... Rxe4 {[%clk 0:01:25.6]} 19. Kxe4 {[%clk
0:01:43.2]} 19... Re8+ {[%clk 0:01:25.6]} 20. Kf3 {[%clk 0:01:38.4]} 20... Re7
{[%clk 0:01:25.5]} 21. Rd8+ {[%clk 0:01:33.1]} 21... Kh7 {[%clk 0:01:24.8]} 22.
Ra8 {[%clk 0:01:34]} 22... a6 {[%clk 0:01:24.5]} 23. Rd8 {[%clk 0:01:32.5]}
23... Kg6 {[%clk 0:01:24.3]} 24. Rd4 {[%clk 0:01:27.3]} 24... Kf6 {[%clk
0:01:13.2]} 25. Rf4+ {[%clk 0:01:20.2]} 25... Kg6 {[%clk 0:01:11.6]} 26. Re4
{[%clk 0:01:14.7]} 26... Rd7 {[%clk 0:01:07.2]} 27. Ke2 {[%clk 0:01:08.1]} 27...
Kf5 {[%clk 0:01:02.9]} 28. Re3 {[%clk 0:01:07.6]} 28... g5 {[%clk 0:00:50]} 29.
Rd3 {[%clk 0:01:07]} 29... Re7+ {[%clk 0:00:49.6]} 30. Re3 {[%clk 0:01:06.6]}
30... Rd7 {[%clk 0:00:44.1]} 31. h3 {[%clk 0:01:07.1]} 31... Kg6 {[%clk
0:00:36.6]} 32. Rd3 {[%clk 0:01:07.4]} 32... Re7+ {[%clk 0:00:34.2]} 33. Kd2
{[%clk 0:01:07.7]} 33... Kf5 {[%clk 0:00:24.6]} 34. Rf3+ {[%clk 0:01:07.8]}
34... Kg6 {[%clk 0:00:24.5]} 35. Re3 {[%clk 0:01:08.1]} 35... Rd7+ {[%clk
0:00:24.4]} 36. Kc3 {[%clk 0:01:08.5]} 36... f5 {[%clk 0:00:23.4]} 37. Re6+
{[%clk 0:01:07.5]} 37... Kg7 {[%clk 0:00:21.4]} 38. Re2 {[%clk 0:01:08.4]} 38...
Kf6 {[%clk 0:00:21.3]} 39. Kc4 {[%clk 0:01:08.6]} 39... Rd5 {[%clk 0:00:18.7]}
40. a4 {[%clk 0:01:05.6]} 40... a5 {[%clk 0:00:18.5]} 41. c3 {[%clk 0:01:02.1]}
41... f4 {[%clk 0:00:16.8]} 42. b4 {[%clk 0:00:45.6]} 42... axb4 {[%clk
0:00:16.2]} 43. cxb4 {[%clk 0:00:44.8]} 43... f3 {[%clk 0:00:15]} 44. gxf3
{[%clk 0:00:42.6]} 44... Kf5 {[%clk 0:00:15.3]} 45. b5 {[%clk 0:00:37.1]} 45...
Kf4 {[%clk 0:00:13.8]} 46. Re6 {[%clk 0:00:33.3]} 46... Rd2 {[%clk 0:00:11.6]}
47. bxc6 {[%clk 0:00:32.7]} 47... bxc6 {[%clk 0:00:11.8]} 48. Rxh6 {[%clk
0:00:32.8]} 48... Rc2+ {[%clk 0:00:10.9]} 49. Kb3 {[%clk 0:00:32]} 49... Rxf2
{[%clk 0:00:10]} 50. Rxc6 {[%clk 0:00:30.2]} 50... Rxf3+ {[%clk 0:00:09.6]} 51.
Rc3 {[%clk 0:00:30.1]} 51... Rf1 {[%clk 0:00:04.6]} 52. a5 {[%clk 0:00:29.7]}
52... Rb1+ {[%clk 0:00:03.8]} 53. Ka4 {[%clk 0:00:29.4]} 53... Rb8 {[%clk
0:00:04]} 54. a6 {[%clk 0:00:28.6]} 54... Ke4 {[%clk 0:00:02.5]} 55. Ka5 {[%clk
0:00:27.7]} 55... Kd4 {[%clk 0:00:02.2]} 56. Rc1 {[%clk 0:00:27.7]} 56... Rb3
{[%clk 0:00:01.3]} 57. a7 {[%clk 0:00:08.5]} 57... Rxh3 {[%clk 0:00:01.3]} 58.
Ra1 {[%clk 0:00:06.9]} 1-0

[Event "*** Titled Tuesday Blitz"]
[Site "Chess.com"]
[Date "2021.03.16"]
[Round "10"]
[White "Vandros57"]
[Black "DanilovVladimir"]
[Result "1/2-1/2"]
[WhiteElo "2209"]
[BlackElo "2401"]
[TimeControl "180+1"]
[EndTime "11:55:31 PDT"]
[Termination "Game drawn - insufficient material"]

1. d4 {[%clk 0:03:00.9]} 1... Nf6 {[%clk 0:02:56.4]} 2. c4 {[%clk 0:02:58.6]}
2... e6 {[%clk 0:02:56.2]} 3. Nf3 {[%clk 0:02:57.1]} 3... b6 {[%clk 0:02:53.5]}
4. g3 {[%clk 0:02:55.4]} 4... Ba6 {[%clk 0:02:54]} 5. Qa4 {[%clk 0:02:53.5]}
5... c6 {[%clk 0:02:52.7]} 6. Nc3 {[%clk 0:02:47.2]} 6... b5 {[%clk 0:02:19.7]}
7. cxb5 {[%clk 0:02:44.9]} 7... cxb5 {[%clk 0:02:20.6]} 8. Nxb5 {[%clk
0:02:41.1]} 8... Qb6 {[%clk 0:02:13.1]} 9. Nc3 {[%clk 0:02:33.8]} 9... Bb4
{[%clk 0:02:07.9]} 10. Bg2 {[%clk 0:02:27.8]} 10... Nc6 {[%clk 0:02:03.5]} 11.
O-O {[%clk 0:02:24.6]} 11... Bxc3 {[%clk 0:01:58.3]} 12. bxc3 {[%clk 0:02:23.1]}
12... Bxe2 {[%clk 0:01:58.8]} 13. Re1 {[%clk 0:02:20.8]} 13... Bb5 {[%clk
0:01:51.7]} 14. Qa3 {[%clk 0:02:13.3]} 14... Qa5 {[%clk 0:01:39.7]} 15. Ne5
{[%clk 0:02:06.9]} 15... Qxa3 {[%clk 0:01:32.3]} 16. Bxa3 {[%clk 0:02:05.7]}
16... Rc8 {[%clk 0:01:31.9]} 17. c4 {[%clk 0:01:58.7]} 17... Ba4 {[%clk
0:01:27.5]} 18. Nxc6 {[%clk 0:01:53.9]} 18... Bxc6 {[%clk 0:01:25.5]} 19. d5
{[%clk 0:01:52.1]} 19... Ba8 {[%clk 0:00:23.4]} 20. Rab1 {[%clk 0:01:37]} 20...
Kd8 {[%clk 0:00:10.6]} 21. f4 {[%clk 0:01:13.6]} 21... Rxc4 {[%clk 0:00:09]} 22.
Rb8+ {[%clk 0:01:10.7]} 22... Rc8 {[%clk 0:00:09.5]} 23. Rxc8+ {[%clk
0:01:08.7]} 23... Kxc8 {[%clk 0:00:10.4]} 24. dxe6 {[%clk 0:01:07.9]} 24... Bxg2
{[%clk 0:00:09.7]} 25. exf7 {[%clk 0:00:56.7]} 25... Bd5 {[%clk 0:00:05.9]} 26.
f8=Q+ {[%clk 0:00:54.6]} 26... Rxf8 {[%clk 0:00:06.3]} 27. Bxf8 {[%clk
0:00:54.4]} 27... Bxa2 {[%clk 0:00:06.9]} 28. Ra1 {[%clk 0:00:52.6]} 28... Bd5
{[%clk 0:00:03.3]} 29. Rxa7 {[%clk 0:00:51]} 29... Ne8 {[%clk 0:00:03.4]} 30.
Kf2 {[%clk 0:00:47.9]} 30... g6 {[%clk 0:00:03.6]} 31. Ke3 {[%clk 0:00:46.8]}
31... Bc6 {[%clk 0:00:03.2]} 32. Be7 {[%clk 0:00:44]} 32... Nc7 {[%clk 0:00:03]}
33. Bc5 {[%clk 0:00:30.1]} 33... Nd5+ {[%clk 0:00:02.7]} 34. Kd4 {[%clk
0:00:29]} 34... Kb8 {[%clk 0:00:03.1]} 35. Ra1 {[%clk 0:00:27.7]} 35... Kb7
{[%clk 0:00:03]} 36. Ke5 {[%clk 0:00:26.8]} 36... Nc3 {[%clk 0:00:02.3]} 37. Rc1
{[%clk 0:00:21.5]} 37... Ne4 {[%clk 0:00:02.1]} 38. Be7 {[%clk 0:00:19.4]} 38...
Ka6 {[%clk 0:00:02.4]} 39. Kd4 {[%clk 0:00:18.2]} 39... Kb5 {[%clk 0:00:02.5]}
40. Rb1+ {[%clk 0:00:17.8]} 40... Ka6 {[%clk 0:00:02.9]} 41. g4 {[%clk
0:00:15.5]} 41... Nd2 {[%clk 0:00:03]} 42. Ra1+ {[%clk 0:00:14.6]} 42... Kb7
{[%clk 0:00:03.3]} 43. f5 {[%clk 0:00:14.5]} 43... Nb3+ {[%clk 0:00:03]} 44. Ke5
{[%clk 0:00:13.2]} 44... Nxa1 {[%clk 0:00:03.9]} 45. f6 {[%clk 0:00:12.8]} 45...
d6+ {[%clk 0:00:02.3]} 46. Kxd6 {[%clk 0:00:10.4]} 46... Be8 {[%clk 0:00:03.2]}
47. Ke6 {[%clk 0:00:10.1]} 47... Nc2 {[%clk 0:00:02]} 48. f7 {[%clk 0:00:10.1]}
48... Nd4+ {[%clk 0:00:02.3]} 49. Kf6 {[%clk 0:00:09.6]} 49... Bxf7 {[%clk
0:00:02.7]} 50. Kxf7 {[%clk 0:00:09.6]} 50... Nf3 {[%clk 0:00:02.2]} 51. h4
{[%clk 0:00:06.8]} 51... Ne5+ {[%clk 0:00:01.4]} 52. Kg7 {[%clk 0:00:06.1]}
52... Nxg4 {[%clk 0:00:02.3]} 53. Kxh7 {[%clk 0:00:05.6]} 53... Ne5 {[%clk
0:00:02.4]} 54. Bf6 {[%clk 0:00:05.2]} 54... Nf3 {[%clk 0:00:02.6]} 55. Kxg6
{[%clk 0:00:03.8]} 55... Nxh4+ {[%clk 0:00:02.3]} 1/2-1/2

[Event "*** Titled Tuesday Blitz"]
[Site "Chess.com"]
[Date "2021.03.16"]
[Round "10"]
[White "xberli"]
[Black "vladgoncharov"]
[Result "0-1"]
[WhiteElo "2598"]
[BlackElo "2474"]
[TimeControl "180+1"]
[EndTime "11:55:34 PDT"]
[Termination "vladgoncharov won by resignation"]

1. e4 {[%clk 0:03:00.9]} 1... e6 {[%clk 0:02:56]} 2. d4 {[%clk 0:02:58.5]} 2...
d5 {[%clk 0:02:56.5]} 3. Nc3 {[%clk 0:02:58.5]} 3... Bb4 {[%clk 0:02:56]} 4. e5
{[%clk 0:02:58.6]} 4... b6 {[%clk 0:02:53.4]} 5. h4 {[%clk 0:02:48.3]} 5... Qd7
{[%clk 0:02:46.9]} 6. h5 {[%clk 0:02:46.7]} 6... h6 {[%clk 0:02:46.9]} 7. Qg4
{[%clk 0:02:41.1]} 7... f5 {[%clk 0:02:46.6]} 8. exf6 {[%clk 0:02:26.9]} 8...
Nxf6 {[%clk 0:02:45.6]} 9. Qg6+ {[%clk 0:02:26.2]} 9... Qf7 {[%clk 0:02:45.2]}
10. Bd3 {[%clk 0:02:25.8]} 10... O-O {[%clk 0:02:36.9]} 11. Nf3 {[%clk
0:02:09.7]} 11... Qxg6 {[%clk 0:02:34.3]} 12. hxg6 {[%clk 0:02:03]} 12... Ba6
{[%clk 0:02:23.5]} 13. a3 {[%clk 0:01:53.3]} 13... Bxc3+ {[%clk 0:02:21.9]} 14.
bxc3 {[%clk 0:01:54.2]} 14... Bxd3 {[%clk 0:02:22]} 15. cxd3 {[%clk 0:01:55.1]}
15... Nbd7 {[%clk 0:02:21.7]} 16. Bf4 {[%clk 0:01:46.4]} 16... c5 {[%clk
0:02:10.6]} 17. Bd6 {[%clk 0:01:40.8]} 17... Rfe8 {[%clk 0:02:03.1]} 18. Kd2
{[%clk 0:01:29.2]} 18... Rac8 {[%clk 0:01:57.8]} 19. Rhe1 {[%clk 0:01:19.3]}
19... c4 {[%clk 0:01:57.4]} 20. Ne5 {[%clk 0:01:10.6]} 20... cxd3 {[%clk
0:01:56]} 21. f3 {[%clk 0:01:10.6]} 21... Nxe5 {[%clk 0:01:54.4]} 22. Bxe5
{[%clk 0:01:08.3]} 22... Nd7 {[%clk 0:01:54]} 23. Kxd3 {[%clk 0:01:06.4]} 23...
Rc6 {[%clk 0:01:53.9]} 24. a4 {[%clk 0:01:03.8]} 24... Rec8 {[%clk 0:01:52.5]}
25. Ra3 {[%clk 0:01:03.7]} 25... Nxe5+ {[%clk 0:01:47.3]} 26. Rxe5 {[%clk
0:01:02.6]} 26... Kf8 {[%clk 0:01:47.8]} 27. f4 {[%clk 0:01:01.5]} 27... Ke7
{[%clk 0:01:21.4]} 28. f5 {[%clk 0:00:57.6]} 28... Kf6 {[%clk 0:01:21.4]} 29. g4
{[%clk 0:00:53.7]} 29... exf5 {[%clk 0:01:15]} 30. gxf5 {[%clk 0:00:52.3]} 30...
h5 {[%clk 0:01:11.3]} 31. Rxd5 {[%clk 0:00:40.6]} 31... h4 {[%clk 0:01:11.2]}
32. Ke4 {[%clk 0:00:32.6]} 32... h3 {[%clk 0:01:02.8]} 33. c4 {[%clk 0:00:31.8]}
33... Rh8 {[%clk 0:00:56.3]} 34. Ra1 {[%clk 0:00:28.4]} 34... h2 {[%clk
0:00:55.5]} 35. Rh1 {[%clk 0:00:17.9]} 35... Rh4+ {[%clk 0:00:48.8]} 36. Kd3
{[%clk 0:00:14.5]} 36... Rh3+ {[%clk 0:00:47.1]} 37. Ke4 {[%clk 0:00:14.3]}
37... Rxc4 {[%clk 0:00:46.1]} 38. Rd6+ {[%clk 0:00:13.7]} 38... Kg5 {[%clk
0:00:43.7]} 39. Rd7 {[%clk 0:00:10.9]} 39... Rxa4 {[%clk 0:00:35.7]} 40. Rxg7
{[%clk 0:00:08.7]} 40... Rh4+ {[%clk 0:00:35.6]} 41. Ke3 {[%clk 0:00:08.1]}
41... Kxf5 {[%clk 0:00:34.5]} 42. Rf1+ {[%clk 0:00:06.3]} 42... Ke6 {[%clk
0:00:31.6]} 43. Rh1 {[%clk 0:00:06.2]} 43... Ra3+ {[%clk 0:00:26]} 44. Kf2
{[%clk 0:00:05.5]} 44... Kf6 {[%clk 0:00:26.1]} 45. Rg8 {[%clk 0:00:05.3]} 45...
Rxd4 {[%clk 0:00:25.1]} 46. g7 {[%clk 0:00:04.3]} 46... Kf7 {[%clk 0:00:21.1]}
47. Rf8+ {[%clk 0:00:02.9]} 47... Kxg7 {[%clk 0:00:20.9]} 48. Rf3 {[%clk
0:00:03.1]} 48... Rd2+ {[%clk 0:00:19.8]} 49. Kg3 {[%clk 0:00:02.8]} 49... Rxf3+
{[%clk 0:00:19.6]} 50. Kxf3 {[%clk 0:00:03.7]} 50... Rb2 {[%clk 0:00:18.8]} 51.
Kg3 {[%clk 0:00:03.3]} 51... a5 {[%clk 0:00:18.4]} 52. Kh3 {[%clk 0:00:03.4]}
52... Kh6 {[%clk 0:00:17.6]} 53. Kg3 {[%clk 0:00:04.3]} 53... a4 {[%clk
0:00:17.4]} 54. Kh3 {[%clk 0:00:05.2]} 54... a3 {[%clk 0:00:17.4]} 55. Kg4
{[%clk 0:00:06.1]} 55... a2 {[%clk 0:00:17.2]} 56. Kh4 {[%clk 0:00:07]} 56... b5
{[%clk 0:00:17.1]} 57. Kh3 {[%clk 0:00:07.9]} 57... b4 {[%clk 0:00:17.4]} 58.
Kg3 {[%clk 0:00:08]} 58... b3 {[%clk 0:00:17.5]} 59. Rc1 {[%clk 0:00:08.4]}
59... Rc2 {[%clk 0:00:16.4]} 60. Re1 {[%clk 0:00:08.2]} 60... b2 {[%clk
0:00:16.4]} 61. Re6+ {[%clk 0:00:06.9]} 61... Kg7 {[%clk 0:00:16.3]} 62. Re7+
{[%clk 0:00:06.7]} 62... Kf6 {[%clk 0:00:16]} 63. Re2 {[%clk 0:00:05.9]} 63...
Rxe2 {[%clk 0:00:15.2]} 0-1